bitfinex/quotes_BTCUSD_20240728
["timestamp","ask_amount","ask_price","bid_price","bid_amount"]
[1722206289571,1.74768597,68234.0,68233.0,0.00399708]
[1722206290006,1.65781651,68234.0,68233.0,0.00399708]
[1722206290824,1.32332951,68234.0,68233.0,0.00399708]
[1722206291255,1.37332951,68234.0,68233.0,0.00399708]
[1722206291672,1.32332951,68234.0,68233.0,0.00399708]
[1722206291929,1.30032951,68234.0,68233.0,0.00399708]
[1722206292353,1.231191,68234.0,68233.0,0.00399708]
[1722206292561,1.56010507,68234.0,68233.0,0.00399708]
[1722206292773,1.39046562,68234.0,68233.0,0.00399708]
[1722206292996,1.6763389,68234.0,68233.0,0.00399708]
[1722206293184,1.8559029,68234.0,68233.0,0.00399708]
[1722206293394,0.970729,68232.0,68231.0,0.011075]
[1722206293599,1.37487328,68232.0,68231.0,0.011075]
[1722206293825,1.27487328,68232.0,68231.0,0.011075]
[1722206294247,1.04037928,68232.0,68231.0,0.011075]
[1722206295163,1.04037928,68232.0,68231.0,0.156875]
[1722206295572,0.970729,68232.0,68231.0,0.156875]
[1722206295778,1.04166979,68232.0,68231.0,0.156875]
[1722206295979,1.05066979,68232.0,68231.0,0.156875]
[1722206296289,1.06166979,68232.0,68231.0,0.156875]
[1722206296500,1.01166979,68232.0,68231.0,0.156875]
[1722206296941,1.06166979,68232.0,68231.0,0.156875]
[1722206297144,1.01166979,68232.0,68231.0,0.156875]
[1722206297299,1.06166979,68232.0,68231.0,0.156875]
[1722206298662,0.990729,68232.0,68231.0,0.156875]
[1722206298869,1.06194991,68232.0,68231.0,0.156875]
[1722206299463,1.27829639,68232.0,68231.0,0.156875]
[1722206300466,1.06194991,68232.0,68231.0,0.156875]
[1722206301241,1.41649337,68232.0,68231.0,0.156875]
[1722206301448,1.20006641,68232.0,68231.0,0.156875]
[1722206302091,1.06201043,68232.0,68231.0,0.156875]
[1722206302293,1.27847892,68232.0,68231.0,0.156875]
[1722206302520,1.27843893,68232.0,68231.0,0.156875]
[1722206303038,1.06195549,68232.0,68231.0,0.156875]
[1722206303243,1.06195549,68232.0,68231.0,0.093775]
[1722206303450,1.27846597,68232.0,68231.0,0.093775]
[1722206303893,1.06195549,68232.0,68231.0,0.093775]
[1722206305373,1.1810226,68232.0,68231.0,0.093775]
[1722206305594,1.19856531,68232.0,68231.0,0.093775]
[1722206306209,1.24856531,68232.0,68231.0,0.093775]
[1722206306434,1.11044826,68232.0,68231.0,0.093775]
[1722206306640,1.06044826,68232.0,68231.0,0.093775]
[1722206308186,1.22705417,68232.0,68231.0,0.093775]
[1722206308408,1.01044826,68232.0,68231.0,0.093775]
[1722206308630,0.99284706,68232.0,68231.0,0.093775]
[1722206308849,1.01035818,68232.0,68231.0,0.093775]
[1722206309268,1.01035818,68232.0,68231.0,0.159675]
[1722206309480,1.21061775,68232.0,68231.0,0.011075]
[1722206310759,1.06035818,68232.0,68231.0,0.011075]
[1722206312303,1.0605864,68232.0,68231.0,0.011075]
[1722206313520,1.2950804,68232.0,68231.0,0.011075]
[1722206313807,1.3950804,68232.0,68231.0,0.011075]
[1722206314215,1.3954128,68232.0,68231.0,0.011075]
[1722206314416,1.54567237,68232.0,68231.0,0.011075]
[1722206315006,1.54556556,68232.0,68231.0,0.011075]
[1722206315561,1.56856556,68232.0,68231.0,0.011075]
[1722206318244,1.56871121,68232.0,68231.0,0.011075]
[1722206318613,1.46871121,68232.0,68231.0,0.011075]
[1722206318841,1.29545164,68232.0,68231.0,0.011075]
[1722206320785,0.77646364,68232.0,68231.0,0.08620479]
[1722206320993,0.77646364,68232.0,68231.0,0.16770479]
[1722206321196,0.77646364,68232.0,68231.0,0.23420479]
[1722206321402,0.08966088,68232.0,68231.0,0.25762527]
[1722206321609,0.08966088,68232.0,68231.0,0.26426613]
[1722206321834,0.009,68232.0,68231.0,0.26426613]
[1722206322037,0.23447,68239.0,68232.0,0.148]
[1722206322038,0.117242,68235.0,68232.0,0.148]
[1722206322241,0.117242,68235.0,68231.0,0.11626613]
[1722206322242,0.003,68232.0,68231.0,0.09284565]
[1722206322471,0.0736355,68232.0,68231.0,0.09284565]
[1722206322673,0.0706355,68232.0,68231.0,0.09284565]
[1722206322888,0.0696355,68232.0,68231.0,0.15464086]
[1722206323081,0.0716355,68232.0,68231.0,0.15464086]
[1722206323231,0.0706355,68232.0,68231.0,0.15464086]
[1722206323678,0.0716355,68232.0,68231.0,0.15464086]
[1722206323886,0.07060678,68232.0,68231.0,0.15464086]
[1722206324293,0.06960678,68232.0,68231.0,0.15464086]
[1722206324565,0.06861031,68232.0,68231.0,0.07314086]
[1722206324771,0.06861031,68232.0,68231.0,0.15464086]
[1722206325083,0.05261908,68232.0,68231.0,0.15464086]
[1722206325508,0.42135131,68232.0,68231.0,0.15464086]
[1722206325894,0.65684531,68232.0,68231.0,0.15464086]
[1722206326143,0.65584531,68232.0,68231.0,0.0815]
[1722206326351,0.65684531,68232.0,68231.0,0.0815]
[1722206326572,0.89133931,68232.0,68231.0,0.0815]
[1722206326773,0.89033931,68232.0,68231.0,0.0815]
[1722206327181,0.88933931,68232.0,68231.0,0.0815]
[1722206327609,0.89033931,68232.0,68231.0,0.0815]
[1722206327819,0.89066195,68232.0,68231.0,0.0815]
[1722206328023,0.89166195,68232.0,68231.0,0.0815]
[1722206328634,0.89066195,68232.0,68231.0,0.0815]
[1722206329648,0.23451,68228.0,68227.0,0.0779]
[1722206329883,0.23451,68228.0,68227.0,0.084547]
[1722206329884,0.42069595,68228.0,68227.0,0.084547]
[1722206330081,0.88995557,68228.0,68227.0,0.084547]
[1722206330491,0.88995557,68228.0,68227.0,0.0779]
[1722206331107,0.89029045,68228.0,68227.0,0.0779]
[1722206331323,0.89129045,68228.0,68227.0,0.0779]
[1722206331539,0.8912218,68228.0,68227.0,0.0779]
[1722206332769,0.9499978,68228.0,68227.0,0.0779]
[1722206333003,0.9509978,68228.0,68227.0,0.0779]
[1722206333203,0.4819778,68228.0,68227.0,0.0779]
[1722206333414,0.4819778,68228.0,68227.0,0.14943886]
[1722206333622,0.2474708,68228.0,68227.0,0.16529025]
[1722206333823,0.27867513,68228.0,68227.0,0.16529025]
[1722206334204,0.0714418,68228.0,68227.0,0.16529025]
[1722206336387,0.0714418,68228.0,68227.0,0.14943886]
[1722206336997,0.01941546,68228.0,68227.0,0.14943886]
[1722206337248,0.15134959,68228.0,68227.0,0.14943886]
[1722206337505,0.15134959,68228.0,68227.0,0.50120486]
[1722206337712,0.07133694,68228.0,68227.0,0.14943886]
[1722206337927,0.07133694,68228.0,68227.0,0.26669386]
[1722206338147,0.07133694,68228.0,68227.0,0.14943886]
[1722206339003,0.002,68228.0,68227.0,0.14943886]
[1722206339226,0.07157971,68228.0,68227.0,0.14943886]
[1722206341539,0.1887214,68228.0,68227.0,0.14943886]
[1722206342073,0.1887214,68228.0,68227.0,0.1428]
[1722206342475,0.1887214,68228.0,68227.0,0.14943886]
[1722206343125,0.8922424,68228.0,68227.0,0.00663886]
[1722206343337,1.04062891,68228.0,68227.0,0.00663886]
[1722206343594,0.820799,68226.0,68225.0,0.009075]
[1722206343751,0.89025059,68226.0,68225.0,0.009075]
[1722206345056,0.89125059,68226.0,68225.0,0.009075]
[1722206345927,0.65673659,68226.0,68225.0,0.009075]
[1722206346127,0.65673659,68226.0,68225.0,0.0179425]
[1722206346335,0.65673659,68226.0,68225.0,0.1663425]
[1722206346539,0.42196782,68226.0,68225.0,0.157475]
[1722206346742,0.07119682,68226.0,68225.0,0.157475]
[1722206346964,0.07119682,68226.0,68225.0,0.16411951]
[1722206347210,0.07119682,68226.0,68225.0,0.28137851]
[1722206347467,0.07119682,68226.0,68225.0,0.36413494]
[1722206347691,0.07119682,68226.0,68225.0,0.16411951]
[1722206348736,0.18845382,68226.0,68225.0,0.16411951]
[1722206349605,0.01991176,68226.0,68225.0,0.16411951]
[1722206349809,0.05449655,68226.0,68225.0,0.16411951]
[1722206350109,0.01991176,68226.0,68225.0,0.16411951]
[1722206350328,0.07240831,68226.0,68225.0,0.16411951]
[1722206351250,0.07240831,68226.0,68225.0,0.60158537]
[1722206351453,0.20432669,68226.0,68225.0,0.83317214]
[1722206351664,0.01991176,68226.0,68225.0,0.83317214]
[1722206352073,0.01991176,68226.0,68225.0,0.36413614]
[1722206352296,0.01991176,68226.0,68225.0,0.16411951]
[1722206352297,0.15183014,68226.0,68225.0,0.16411951]
[1722206352512,0.07247222,68226.0,68225.0,0.16411951]
[1722206352966,0.07288505,68226.0,68225.0,0.16411994]
[1722206353390,0.002,68226.0,68225.0,0.16411994]
[1722206353599,0.20479078,68226.0,68225.0,0.16411994]
[1722206353817,0.07287714,68226.0,68225.0,0.16411994]
[1722206354482,0.2047915,68226.0,68225.0,0.16411994]
[1722206354698,0.07287714,68226.0,68225.0,0.16411994]
[1722206355568,0.07246182,68226.0,68225.0,0.28137894]
[1722206356396,0.07279288,68226.0,68225.0,0.16411994]
[1722206357493,0.19004988,68226.0,68225.0,0.16411994]
[1722206357702,0.07279288,68226.0,68225.0,0.16411994]
[1722206358725,0.19004988,68226.0,68225.0,0.16411994]
[1722206358931,0.07279288,68226.0,68225.0,0.16411994]
[1722206359277,0.002,68226.0,68225.0,0.16411994]
[1722206359485,0.07250163,68226.0,68225.0,0.16411994]
[1722206361326,0.07250163,68226.0,68225.0,0.28137894]
[1722206362673,0.02018776,68226.0,68225.0,0.28137894]
[1722206362874,0.07294563,68226.0,68225.0,0.28137894]
[1722206363099,0.002,68226.0,68225.0,0.28137894]
[1722206363380,0.073019,68226.0,68225.0,0.36413531]
[1722206363552,0.073019,68226.0,68225.0,0.59865331]
[1722206365960,0.05514615,68226.0,68225.0,0.59865331]
[1722206366329,0.0737416,68226.0,68225.0,0.59865331]
[1722206366941,0.0737416,68226.0,68225.0,1.06768931]
[1722206367152,0.02059545,68226.0,68225.0,1.06768931]
[1722206368094,0.02059545,68226.0,68225.0,1.11768931]
[1722206368712,0.01959545,68226.0,68225.0,1.11768931]
[1722206368914,0.10862277,68226.0,68225.0,1.35420731]
[1722206369118,0.08643014,68226.0,68225.0,1.45420731]
[1722206369325,0.04601092,68226.0,68225.0,1.45420731]
[1722206369503,0.001,68226.0,68225.0,1.45420731]
[1722206370068,0.002,68226.0,68225.0,1.45420731]
[1722206370224,0.001,68226.0,68225.0,1.45420731]
[1722206370401,0.04485092,68231.0,68230.0,0.05]
[1722206370618,0.06288699,68231.0,68230.0,0.59616796]
[1722206370984,0.06288699,68231.0,68230.0,1.01516796]
[1722206371592,0.00084,68231.0,68230.0,1.01516796]
[1722206372172,0.00084,68231.0,68230.0,1.02916796]
[1722206372531,0.00084,68231.0,68230.0,1.02816796]
[1722206373367,0.00184,68231.0,68230.0,1.04216796]
[1722206374103,0.00184,68231.0,68230.0,1.09116796]
[1722206374516,0.00184,68231.0,68230.0,1.04216796]
[1722206376643,0.00184,68231.0,68230.0,1.09116796]
[1722206379342,0.00184,68231.0,68230.0,1.40079775]
[1722206379658,0.00184,68231.0,68230.0,1.40279775]
[1722206382706,0.00184,68231.0,68230.0,1.50279775]
[1722206384644,0.00184,68231.0,68230.0,1.65739775]
[1722206385192,0.00184,68231.0,68230.0,1.97619775]
[1722206385414,0.00184,68231.0,68230.0,1.99919775]
[1722206385830,0.00084,68231.0,68230.0,1.97119775]
[1722206386248,0.00284,68231.0,68230.0,1.99919775]
[1722206386605,0.00184,68231.0,68230.0,2.08519775]
[1722206387612,0.00184,68231.0,68230.0,2.07119775]
[1722206387613,0.00084,68231.0,68230.0,2.07119775]
[1722206387816,0.00184,68231.0,68230.0,2.08519775]
[1722206388017,0.00284,68231.0,68230.0,2.09919775]
[1722206388538,0.00284,68231.0,68230.0,1.70526796]
[1722206388726,0.00284,68231.0,68230.0,1.78956796]
[1722206391277,0.00284,68231.0,68230.0,1.91596796]
[1722206393448,0.00284,68231.0,68230.0,1.81496796]
[1722206393651,0.00284,68231.0,68230.0,1.79096796]
[1722206393876,0.00284,68231.0,68230.0,1.74196796]
[1722206394079,0.00284,68231.0,68230.0,1.79196796]
[1722206394461,0.00284,68231.0,68230.0,1.89096796]
[1722206394641,0.00284,68231.0,68230.0,1.89296796]
[1722206395293,0.00284,68231.0,68230.0,1.79096796]
[1722206397255,0.00284,68231.0,68230.0,1.63636796]
[1722206397377,0.00284,68231.0,68230.0,1.89186796]
[1722206400035,0.00284,68231.0,68230.0,1.41356796]
[1722206400283,0.00284,68231.0,68230.0,1.57426796]
[1722206401496,0.00284,68231.0,68230.0,1.16606853]
[1722206401697,0.00284,68231.0,68230.0,1.21506853]
[1722206402036,0.00284,68231.0,68230.0,1.84446853]
[1722206404229,0.00284,68231.0,68230.0,2.10196853]
[1722206404465,0.00284,68231.0,68230.0,2.00096853]
[1722206404688,0.00284,68231.0,68230.0,2.2522281]
[1722206407623,0.0015542,68248.0,68246.0,0.049]
[1722206407829,0.0015542,68248.0,68247.0,0.351663]
[1722206408040,0.0015542,68248.0,68247.0,0.82710324]
[1722206408041,0.01980037,68248.0,68247.0,0.82710324]
[1722206408240,0.01980037,68248.0,68247.0,0.72055457]
[1722206408470,0.16414617,68248.0,68247.0,0.00655624]
[1722206408688,0.22994685,68248.0,68247.0,0.00655624]
[1722206408896,0.001,68247.0,68246.0,0.145222]
[1722206409100,0.17272054,68247.0,68246.0,0.42465396]
[1722206409298,0.17427474,68247.0,68246.0,0.39665396]
[1722206409509,0.08650037,68247.0,68246.0,0.39665396]
[1722206409742,0.08494617,68247.0,68246.0,0.39665396]
[1722206409912,0.08650037,68247.0,68246.0,0.39665396]
[1722206410555,0.19469163,68247.0,68246.0,0.39665396]
[1722206410760,0.19462254,68247.0,68246.0,0.39665396]
[1722206411160,0.19562254,68247.0,68246.0,0.41065396]
[1722206411567,0.08587708,68247.0,68246.0,0.41065396]
[1722206412480,0.08687708,68247.0,68246.0,0.42465396]
[1722206412684,0.0687,68247.0,68246.0,0.42465396]
[1722206412886,0.08847149,68247.0,68246.0,0.42465396]
[1722206413229,0.08691729,68247.0,68246.0,0.42465396]
[1722206413434,0.0687,68247.0,68246.0,0.42465396]
[1722206413674,0.0886041,68247.0,68246.0,0.42465396]
[1722206413872,0.0886041,68247.0,68246.0,0.07298696]
[1722206414078,0.7561091,68247.0,68246.0,0.03943194]
[1722206414319,0.5730132,68247.0,68246.0,0.028]
[1722206414659,0.3385712,68247.0,68246.0,0.028]
[1722206414874,0.3385712,68247.0,68246.0,0.03945218]
[1722206416146,0.3394112,68247.0,68246.0,0.03945218]
[1722206416797,0.33902847,68247.0,68246.0,0.028]
[1722206417035,0.33902847,68247.0,68246.0,0.03945565]
[1722206417223,0.21861688,68247.0,68246.0,0.69023602]
[1722206417446,0.21861688,68247.0,68246.0,0.87568102]
[1722206417447,0.08669274,68247.0,68246.0,0.87568102]
[1722206417687,0.02099274,68247.0,68246.0,0.87568102]
[1722206418456,0.13092504,68247.0,68246.0,0.87568102]
[1722206418690,0.02099274,68247.0,68246.0,0.87568102]
[1722206420037,0.02199274,68247.0,68246.0,0.87568102]
[1722206420223,0.02099274,68247.0,68246.0,0.87568102]
[1722206420438,0.00284,68247.0,68246.0,0.87568102]
[1722206420569,0.02072283,68247.0,68246.0,0.87568102]
[1722206422555,0.08669497,68247.0,68246.0,1.06848102]
[1722206422718,0.00284,68247.0,68246.0,1.01948102]
[1722206422915,0.02225963,68247.0,68246.0,1.01948102]
[1722206423126,0.02226033,68247.0,68246.0,1.01948102]
[1722206423325,0.06468535,68247.0,68246.0,1.06848102]
[1722206423536,0.01970613,68247.0,68246.0,1.05448102]
[1722206423735,0.06368567,68247.0,68246.0,1.06848102]
[1722206423935,0.06623987,68247.0,68246.0,1.06848102]
[1722206424110,0.06611823,68247.0,68246.0,1.05448102]
[1722206424311,0.06456403,68247.0,68246.0,1.05448102]
[1722206424533,0.04681954,68247.0,68246.0,1.06848102]
[1722206424873,0.02055798,68247.0,68246.0,0.95458102]
[1722206425079,0.08465798,68247.0,68246.0,0.37712265]
[1722206425286,0.08465798,68247.0,68246.0,0.61156765]
[1722206426111,0.08465798,68247.0,68246.0,0.62556765]
[1722206426535,0.08621218,68247.0,68246.0,0.62556765]
[1722206426701,0.08465798,68247.0,68246.0,0.71156962]
[1722206427067,0.08621218,68247.0,68246.0,0.71156962]
[1722206427489,0.08465798,68247.0,68246.0,0.71156962]
[1722206428505,0.21818141,68247.0,68246.0,0.71156962]
[1722206428727,0.21662721,68247.0,68246.0,0.71156962]
[1722206428950,0.08465798,68247.0,68246.0,0.71156962]
[1722206429357,0.08621218,68247.0,68246.0,0.71156962]
[1722206429597,0.08465798,68247.0,68246.0,0.71156962]
[1722206429733,0.21663797,68247.0,68246.0,0.71156962]
[1722206430067,0.0684942,68247.0,68246.0,0.71156962]
[1722206430270,0.08636268,68247.0,68246.0,0.71156962]
[1722206430451,0.08480848,68247.0,68246.0,0.71156962]
[1722206430649,0.08480848,68247.0,68246.0,0.03945565]
[1722206430650,0.08636268,68247.0,68246.0,0.03945565]
[1722206431071,0.08636268,68247.0,68246.0,0.028]
[1722206431252,0.08636268,68247.0,68246.0,0.03921026]
[1722206431615,0.08436268,68247.0,68246.0,0.01121026]
[1722206431820,0.0651,68246.0,68244.0,0.117225]
[1722206432136,0.01942268,68245.0,68244.0,0.117225]
[1722206432336,0.02042268,68245.0,68244.0,0.117225]
[1722206432789,0.0025542,68245.0,68244.0,0.351677]
[1722206432988,0.02007275,68245.0,68244.0,0.4102907]
[1722206433689,0.02007275,68245.0,68244.0,0.4242907]
[1722206434295,0.1520539,68245.0,68244.0,0.1898387]
[1722206434496,0.1520539,68245.0,68244.0,0.131225]
[1722206434699,0.1520539,68245.0,68244.0,0.026]
[1722206435109,0.02007275,68245.0,68244.0,0.026]
[1722206436215,0.1666842,68245.0,68244.0,0.026]
[1722206436439,0.16668425,68245.0,68244.0,0.026]
[1722206436588,0.16823845,68245.0,68244.0,0.026]
[1722206436767,0.16823845,68245.0,68244.0,0.0403229]
[1722206436975,0.28390825,68245.0,68244.0,0.026]
[1722206437800,0.57032966,68245.0,68244.0,0.026]
[1722206437999,0.80477866,68245.0,68244.0,0.026]
[1722206438201,0.57188386,68245.0,68244.0,0.026]
[1722206438520,0.71881979,68245.0,68244.0,0.026]
[1722206438684,0.57032966,68245.0,68244.0,0.026]
[1722206438887,0.72037399,68245.0,68244.0,0.026]
[1722206439356,0.500773,68245.0,68244.0,0.026]
[1722206439645,0.57212294,68245.0,68244.0,0.026]
[1722206439885,0.5023272,68245.0,68244.0,0.026]
[1722206440091,0.57198959,68245.0,68244.0,0.026]
[1722206440283,0.57043539,68245.0,68244.0,0.026]
[1722206440484,0.57198959,68245.0,68244.0,0.026]
[1722206440982,0.57043539,68245.0,68244.0,0.026]
[1722206441364,0.21876239,68245.0,68244.0,0.0403234]
[1722206441574,0.21876239,68245.0,68244.0,0.04879789]
[1722206441777,0.26717701,68245.0,68244.0,0.04879789]
[1722206441939,0.28410407,68245.0,68244.0,0.04879789]
[1722206442140,0.33646537,68245.0,68244.0,0.0403234]
[1722206442336,0.33646537,68245.0,68244.0,0.026]
[1722206442539,0.33647585,68245.0,68244.0,0.026]
[1722206442956,0.33803005,68245.0,68244.0,0.026]
[1722206444278,0.33803005,68245.0,68244.0,0.03447449]
[1722206445250,0.21925185,68245.0,68244.0,0.03447449]
[1722206445855,0.500773,68245.0,68244.0,0.03447449]
[1722206446124,0.57058343,68245.0,68244.0,0.03447449]
[1722206446305,0.57058343,68245.0,68244.0,0.026]
[1722206446880,0.57058343,68245.0,68244.0,0.03448151]
[1722206448298,0.33613443,68245.0,68244.0,0.03448151]
[1722206449066,0.16671123,68245.0,68244.0,0.03448151]
[1722206449278,0.29882682,68245.0,68244.0,0.07309866]
[1722206449693,0.1491,68245.0,68244.0,0.07309866]
[1722206449897,0.29882272,68245.0,68244.0,0.07309866]
[1722206450859,0.16847822,68245.0,68244.0,0.07309866]
[1722206451064,0.22084347,68245.0,68244.0,0.07309866]
[1722206451269,0.21928927,68245.0,68244.0,0.07309866]
[1722206451591,0.1491,68245.0,68244.0,0.07309866]
[1722206451786,0.21925443,68245.0,68244.0,0.07309866]
[1722206451998,0.22080863,68245.0,68244.0,0.07309866]
[1722206452359,0.22100591,68245.0,68244.0,0.07309866]
[1722206452580,0.33667571,68245.0,68244.0,0.07309866]
[1722206452782,0.33667571,68245.0,68244.0,0.03448151]
[1722206453167,0.57112471,68245.0,68244.0,0.026]
[1722206453517,0.57112471,68245.0,68244.0,0.03448159]
[1722206453518,0.33667571,68245.0,68244.0,0.03448159]
[1722206455736,0.266324,68245.0,68244.0,0.03448159]
[1722206455935,0.33599987,68245.0,68244.0,0.03448159]
[1722206459042,0.266324,68245.0,68244.0,0.03448159]
[1722206459263,0.33585142,68245.0,68244.0,0.03448159]
[1722206459469,0.266324,68245.0,68244.0,0.03448159]
[1722206459687,0.33585141,68245.0,68244.0,0.03448159]
[1722206460692,0.57030041,68245.0,68244.0,0.03448159]
[1722206460950,0.57030041,68245.0,68244.0,0.026]
[1722206461268,0.21862741,68245.0,68244.0,0.026]
[1722206461617,0.21862741,68245.0,68244.0,0.03448547]
[1722206462382,0.33585141,68245.0,68244.0,0.03448547]
[1722206462590,0.21862741,68245.0,68244.0,0.03448547]
[1722206462982,0.33585141,68245.0,68244.0,0.03448547]
[1722206463871,0.2198666,68245.0,68244.0,0.03448547]
[1722206464649,0.1491,68245.0,68244.0,0.03448547]
[1722206464849,0.220493,68245.0,68244.0,0.03448547]
[1722206465623,0.337717,68245.0,68244.0,0.03448547]
[1722206465817,0.3361628,68245.0,68244.0,0.03448547]
[1722206467466,1.0395098,68245.0,68244.0,0.03448547]
[1722206467889,1.0895098,68245.0,68244.0,0.026]
[1722206468080,1.08936483,68245.0,68244.0,0.026]
[1722206468254,1.08936483,68245.0,68244.0,0.014]
[1722206468453,0.117247,68232.0,68228.0,0.4758]
[1722206468655,0.32884083,68232.0,68228.0,0.117253]
[1722206469443,0.21159383,68232.0,68227.0,0.117253]
[1722206469870,0.21305228,68232.0,68227.0,0.117253]
[1722206470423,0.33029928,68232.0,68225.0,0.243592]
[1722206470700,0.32884083,68232.0,68231.0,0.005924]
[1722206470836,0.21159383,68232.0,68231.0,0.005924]
[1722206471033,0.0015542,68233.0,68231.0,0.005924]
[1722206471034,0.001,68233.0,68231.0,0.005924]
[1722206471285,0.07013442,68232.0,68231.0,0.50896468]
[1722206471492,0.01777352,68232.0,68231.0,1.04755868]
[1722206471664,0.001,68236.0,68235.0,0.351724]
[1722206471843,0.02017785,68237.0,68236.0,0.35172]
[1722206472050,0.02017747,68237.0,68236.0,0.35172]
[1722206472244,0.15211251,68237.0,68236.0,0.35172]
[1722206472547,0.02017747,68237.0,68236.0,0.47582065]
[1722206472747,0.15211251,68237.0,68236.0,0.47582065]
[1722206472970,0.01862327,68237.0,68236.0,0.47582065]
[1722206473370,0.02017747,68237.0,68236.0,0.47582065]
[1722206473574,0.02021971,68237.0,68236.0,0.47582065]
[1722206474218,0.02021971,68237.0,68236.0,0.48433059]
[1722206474427,0.13450628,68237.0,68236.0,0.48433059]
[1722206474638,0.15055714,68237.0,68236.0,0.49033059]
[1722206474835,0.01860506,68237.0,68236.0,0.49033059]
[1722206475088,0.02015926,68237.0,68236.0,0.49033059]
[1722206475481,0.15055714,68237.0,68236.0,0.49033059]
[1722206475678,0.15055714,68237.0,68236.0,0.49433059]
[1722206476405,0.15055714,68237.0,68236.0,0.01850994]
[1722206476406,0.07080101,68237.0,68236.0,0.01850994]
[1722206476623,0.13190101,68237.0,68236.0,0.13574994]
[1722206476824,0.07080101,68237.0,68236.0,0.13574994]
[1722206477048,0.15057325,68237.0,68236.0,0.13574994]
[1722206477205,0.01860506,68237.0,68236.0,0.41666202]
[1722206477724,0.0025542,68237.0,68236.0,0.41666202]
[1722206477926,0.01858803,68237.0,68236.0,0.41666202]
[1722206478158,0.01914223,68237.0,68236.0,0.79274202]
[1722206478288,0.02014223,68237.0,68236.0,0.79274202]
[1722206478487,0.01758803,68237.0,68236.0,0.79274202]
[1722206478707,0.01858803,68237.0,68236.0,0.79274202]
[1722206478958,0.01858803,68237.0,68236.0,0.78274202]
[1722206479132,0.15055936,68237.0,68236.0,0.78274202]
[1722206479309,0.15055936,68237.0,68236.0,0.72014202]
[1722206479835,0.15055936,68237.0,68236.0,0.71614202]
[1722206480047,0.15055936,68237.0,68236.0,0.73014202]
[1722206480403,0.01858803,68237.0,68236.0,0.73614202]
[1722206480604,0.15057956,68237.0,68236.0,0.42666202]
[1722206480803,0.01858803,68237.0,68236.0,0.42066202]
[1722206481008,0.15084727,68237.0,68236.0,0.42066202]
[1722206481204,0.15084727,68237.0,68236.0,0.38822994]
[1722206481515,0.07191919,68237.0,68236.0,0.38822994]
[1722206482219,0.071974,68237.0,68236.0,0.38822994]
[1722206482430,0.071974,68237.0,68236.0,0.15374994]
[1722206482431,0.13847522,68237.0,68236.0,0.15374994]
[1722206482634,0.13847522,68237.0,68236.0,0.03650994]
[1722206482781,0.13847522,68237.0,68236.0,0.15374994]
[1722206484028,0.07197522,68237.0,68236.0,0.15374994]
[1722206484228,0.0722199,68237.0,68236.0,0.15374994]
[1722206486446,0.15173852,68237.0,68236.0,0.15374994]
[1722206486647,0.01974071,68237.0,68236.0,0.15374994]
[1722206486805,0.07224265,68237.0,68236.0,0.15374994]
[1722206487611,0.07215839,68237.0,68236.0,0.15374994]
[1722206487810,0.20315959,68237.0,68236.0,0.7631951]
[1722206488011,0.01870943,68237.0,68236.0,0.7631951]
[1722206488210,0.01970943,68237.0,68236.0,0.7631951]
[1722206488593,0.02026363,68237.0,68236.0,0.7631951]
[1722206489389,0.01870943,68237.0,68236.0,0.7631951]
[1722206490782,0.00084,68237.0,68236.0,0.7631951]
[1722206491485,0.01949641,68237.0,68236.0,0.7631951]
[1722206493166,0.01949641,68237.0,68236.0,0.8474951]
[1722206493603,0.02105061,68237.0,68236.0,0.8474951]
[1722206493982,0.02103077,68237.0,68236.0,0.8474951]
[1722206494199,0.01947657,68237.0,68236.0,0.8474951]
[1722206495451,0.02103077,68237.0,68236.0,0.8474951]
[1722206495858,0.01947657,68237.0,68236.0,0.8474951]
[1722206496260,0.02103077,68237.0,68236.0,0.8474951]
[1722206496463,0.02003077,68237.0,68236.0,0.8474951]
[1722206496642,0.01847657,68237.0,68236.0,0.8474951]
[1722206496845,0.01947657,68237.0,68236.0,0.8474951]
[1722206497047,0.01847657,68237.0,68236.0,0.8474951]
[1722206497251,0.01947657,68237.0,68236.0,0.8474951]
[1722206497453,0.02003077,68237.0,68236.0,0.8474951]
[1722206497816,0.02003077,68237.0,68236.0,1.2104751]
[1722206498011,0.02003077,68237.0,68236.0,1.4449551]
[1722206498012,0.10648291,68237.0,68236.0,1.4449551]
[1722206498143,0.00084,68237.0,68236.0,1.4469551]
[1722206498526,0.00084,68237.0,68236.0,1.1984751]
[1722206498784,0.04484066,68237.0,68236.0,1.1964751]
[1722206499141,0.00084,68237.0,68236.0,1.3228751]
[1722206499355,0.00084,68237.0,68236.0,1.3368751]
[1722206502963,0.00084,68237.0,68236.0,1.7759551]
[1722206503166,0.00084,68237.0,68236.0,1.9489551]
[1722206503467,0.00084,68237.0,68236.0,2.1834351]
[1722206503881,0.00084,68237.0,68236.0,2.1694351]
[1722206504084,0.00084,68237.0,68236.0,2.1554351]
[1722206504464,0.00084,68237.0,68236.0,2.1834351]
[1722206504662,0.00084,68237.0,68236.0,2.1694351]
[1722206504860,0.00084,68237.0,68236.0,2.1554351]
[1722206505033,0.00084,68237.0,68236.0,2.1694351]
[1722206505228,0.00084,68237.0,68236.0,2.1834351]
[1722206509515,0.00084,68237.0,68236.0,1.7382551]
[1722206509832,0.00084,68237.0,68236.0,1.3417751]
[1722206510001,0.00084,68237.0,68236.0,1.4407751]
[1722206510202,0.00084,68237.0,68236.0,1.2917751]
[1722206510610,0.00084,68237.0,68236.0,1.0346751]
[1722206510812,0.00084,68237.0,68236.0,0.85718994]
[1722206511378,0.00084,68237.0,68236.0,0.84318994]
[1722206511797,0.00084,68237.0,68236.0,0.87818994]
[1722206512805,0.00084,68237.0,68236.0,0.90618994]
[1722206513044,0.0006261,68237.0,68236.0,0.90618994]
[1722206513272,0.0006261,68237.0,68236.0,1.05644951]
[1722206513484,0.0006261,68237.0,68236.0,1.11804951]
[1722206515108,0.0006261,68237.0,68236.0,1.05644951]
[1722206516936,0.0006261,68237.0,68236.0,1.00744951]
[1722206518312,0.0006261,68237.0,68236.0,0.85718994]
[1722206518500,0.0006261,68237.0,68236.0,0.90618994]
[1722206521410,0.0006261,68237.0,68236.0,0.85718994]
[1722206521859,0.0006261,68237.0,68236.0,1.28416994]
[1722206522521,0.0006261,68237.0,68236.0,1.28616994]
[1722206522747,0.0006261,68237.0,68236.0,1.69102951]
[1722206522987,0.0006261,68237.0,68236.0,1.71402951]
[1722206524127,0.0006261,68237.0,68236.0,1.68602951]
[1722206524586,0.0006261,68237.0,68236.0,1.71402951]
[1722206529222,0.0006261,68237.0,68236.0,1.79832951]
[1722206529528,0.0006261,68237.0,68236.0,1.79846951]
[1722206533354,0.0006261,68237.0,68236.0,1.69746951]
[1722206533595,0.0006261,68237.0,68236.0,1.79846951]